fUSD/lending_fUSD_20241121
["ID","MTS","AMOUNT","RATE_DAILY","PERIOD"]
[342830503,1732167040376,-499.999999,0.00034627,120]
[342830505,1732167040385,-1233.38339711,0.00034627,120]
[342830507,1732167040395,-437.03325976,0.00034627,2]
[342830509,1732167040405,-26506.74796225,0.00034627,2]
[342830511,1732167040415,-544.60890011,0.00034627,2]
[342830513,1732167040424,-491958.43307152,0.00034627,4]
[342830515,1732167040434,-600.52984516,0.00034627,2]
[342830517,1732167040443,-259.50765811,0.00034627,14]
[342830519,1732167040452,-1000.0,0.00034627,30]
[342830521,1732167040462,-11700.0,0.000348,12]
[342830523,1732167040472,-15600.0,0.000349,12]
[342830525,1732167040487,-166.17,0.00034908,2]
[342830527,1732167040497,-350.0,0.00035,2]
[342830529,1732167040507,-5190.54060636,0.00035,4]
[342830531,1732167040517,-275.56,0.00035098,2]
[342830533,1732167040527,-1000.0,0.00035174,2]
[342830535,1732167040537,-166.47,0.00035262,2]
[342830537,1732167040547,-3000.0,0.00035616,120]
[342830539,1732167040557,-1500.0,0.00035616,120]
[342830541,1732167040566,-632.0,0.00036106,2]
[342830543,1732167040576,-320.0,0.00036437,120]
[342830545,1732167040585,-166.5,0.00036659,2]
[342830547,1732167040598,-3000.0,0.0003673,25]
[342830549,1732167040608,-400.0,0.00037,2]
[342830551,1732167040618,-2276.33172305,0.00037312,15]
[342830553,1732167040628,-275.56,0.00037362,2]
[342830555,1732167040638,-154.68,0.0003797,120]
[342830557,1732167040647,-176.95,0.00037973,120]
[342830559,1732167040658,-363.0,0.000387,2]
[342830561,1732167040668,-1000.0,0.000387,2]
[342830564,1732167040678,-450.0,0.00039,2]
[342830566,1732167040688,-1000.0,0.00039082,2]
[342830568,1732167040698,-632.0,0.00039106,2]
[342830570,1732167040707,-3000.0,0.0003923,33]
[342830572,1732167040718,-275.56,0.00039626,2]
[342830574,1732167040728,-153.93,0.00039671,2]
[342830576,1732167040739,-1150.91607306,0.00039699,30]
[342830578,1732167040751,-292.863552,0.00039799,14]
[342830580,1732167040761,-151.0,0.00039799,14]
[342830582,1732167040771,-231.762559,0.00039799,14]
[342830584,1732167040780,-206.425465,0.00039799,14]
[342830586,1732167040790,-151.0,0.00039799,14]
[342830588,1732167040799,-151.0,0.00039799,14]
[342830590,1732167040809,-178.423751,0.00039799,14]
[342830592,1732167040820,-151.0,0.00039799,14]
[342830594,1732167040830,-151.0,0.00039799,14]
[342830596,1732167040840,-1150.91607306,0.00039799,30]
[342830598,1732167040850,-248811.38624222,0.000398,2]
[342830600,1732167040860,-151.0,0.000398,14]
[342830602,1732167040870,-151.0,0.000398,14]
[342830604,1732167040880,-151.0,0.000398,14]
[342830606,1732167040890,-151.0,0.000398,14]
[342830608,1732167040900,-151.774596,0.000398,14]
[342830610,1732167040909,-151.0,0.000398,14]
[342830612,1732167040919,-151.0,0.000398,14]
[342830613,1732167040929,-151.0,0.000398,14]
[342830615,1732167040939,-151.0,0.000398,14]
[342830617,1732167040949,-151.0,0.000398,14]
[342830619,1732167040959,-151.0,0.000398,14]
[342830622,1732167040969,-151.0,0.000398,14]
[342830624,1732167040981,-151.0,0.000398,14]
[342830626,1732167040991,-151.0,0.000398,14]
[342830628,1732167041001,-209.363668,0.000398,14]
[342830629,1732167041011,-209.363668,0.000398,14]
[342830632,1732167041022,-151.0,0.000398,14]
[342830633,1732167041031,-151.0,0.000398,14]
[342830635,1732167041041,-710.218166,0.000398,14]
[342830637,1732167041051,-710.218166,0.000398,14]
[342830639,1732167041060,-151.0,0.000398,14]
[342830640,1732167041071,-176.916156,0.000398,14]
[342830641,1732167041080,-176.916156,0.000398,14]
[342830642,1732167041090,-151.0,0.000398,14]
[342830644,1732167041101,-151.0,0.000398,14]
[342830646,1732167041111,-151.0,0.000398,14]
[342830648,1732167041121,-14422.53102902,0.000398,2]
[342830650,1732167041130,-677.50728671,0.000399,2]
[342830651,1732167041140,-1401.02302968,0.0003999,120]
[342830652,1732167041150,-34101.350716,0.0004,20]
[342830653,1732167041160,-22210.29201925,0.0004,30]
[342830654,1732167041169,-7896.81,0.0004,60]
[342830655,1732167041179,-520.74432926,0.0004,120]
[342830656,1732167041189,-962.3493555,0.0004,4]
[342830657,1732167041198,-508.06,0.0004,4]
[342830658,1732167041207,-500.0,0.0004,2]
[342830659,1732167041217,-500.0,0.0004,4]
[342830660,1732167041228,-151.0,0.0004,14]
[342830661,1732167041239,-327.205547,0.0004,14]
[342830662,1732167041249,-327.205547,0.0004,14]
[342830663,1732167041259,-151.0,0.0004,14]
[342830664,1732167041270,-151.0,0.0004,14]
[342830665,1732167041287,-151.0,0.0004,14]
[342830666,1732167041301,-151.500649,0.0004,14]
[342830667,1732167041313,-151.0,0.0004,14]
[342830668,1732167041325,-151.0,0.0004,14]
[342830669,1732167041335,-151.0,0.0004,14]
[342830670,1732167041345,-151.0,0.0004,14]
[342830671,1732167041355,-151.0,0.0004,14]
[342830672,1732167041365,-151.0,0.0004,14]
[342830673,1732167041375,-151.0,0.0004,14]
[342830674,1732167041386,-323.410003,0.0004,14]
[342830675,1732167041395,-323.410003,0.0004,14]
[342830676,1732167041405,-582.092968,0.0004,14]
[342830677,1732167041416,-582.092968,0.0004,14]
[342830678,1732167041426,-152.293454,0.0004,14]
[342830679,1732167041437,-211.363073,0.0004,14]
[342830680,1732167041447,-288.607166,0.0004,14]
[342830681,1732167041457,-211.363073,0.0004,14]
[342830682,1732167041467,-1985.426764,0.0004,14]
[342830683,1732167041476,-288.607166,0.0004,14]
[342830684,1732167041486,-151.0,0.0004,14]
[342830685,1732167041496,-1985.426764,0.0004,14]
[342830686,1732167041506,-151.0,0.0004,14]
[342830687,1732167041515,-151.0,0.0004,14]
[342830688,1732167041525,-151.0,0.0004,14]
[342830689,1732167041535,-151.0,0.0004,14]
[342830690,1732167041545,-151.0,0.0004,14]
[342830691,1732167041555,-151.0,0.0004,14]
[342830692,1732167041565,-151.0,0.0004,14]
[342830693,1732167041574,-151.0,0.0004,14]
[342830694,1732167041584,-151.0,0.0004,14]
[342830695,1732167041594,-2596.49532,0.0004,14]
[342830696,1732167041603,-151.0,0.0004,14]
[342830697,1732167041613,-2596.49532,0.0004,14]
[342830698,1732167041623,-151.0,0.0004,14]
[342830699,1732167041632,-151.0,0.0004,14]
[342830700,1732167041641,-151.0,0.0004,14]
[342830701,1732167041651,-187.979718,0.0004,14]
[342830702,1732167041660,-187.979718,0.0004,14]
[342830703,1732167041670,-151.0,0.0004,14]
[342830704,1732167041679,-268.808484,0.0004,14]
[342830705,1732167041689,-558.17647,0.0004,14]
[342830706,1732167041698,-558.17647,0.0004,14]
[342830707,1732167041707,-562.5,0.00040616,60]
[342830708,1732167041717,-866.71,0.00040701,2]
[342830709,1732167041726,-318.61503397,0.00041,120]
[342830710,1732167041745,-500.0,0.00041,2]
[342830711,1732167041754,-2046.0,0.00041,117]
[342830712,1732167041764,-500.0,0.00041095,120]
[342830713,1732167041774,-500.0,0.00041095,120]
[342830714,1732167041784,-500.0,0.00041095,120]
[342830715,1732167041793,-500.0,0.00041095,120]
[342830716,1732167041803,-500.0,0.00041095,120]
[342830717,1732167041813,-500.0,0.00041095,120]
[342830718,1732167041823,-500.0,0.00041095,120]
[342830719,1732167041832,-500.0,0.00041095,120]
[342830720,1732167041842,-500.0,0.00041095,120]
[342830721,1732167041851,-500.0,0.00041095,120]
[342830722,1732167041861,-500.0,0.00041095,120]
[342830723,1732167041870,-500.0,0.00041095,120]
[342830724,1732167041880,-477.3703175,0.00041095,120]
[342830725,1732167041890,-151.0,0.00041096,14]
[342830726,1732167041899,-151.0,0.00041096,14]
[342830727,1732167041909,-152.0,0.00041432,3]
[342830728,1732167041919,-163.034,0.0004147,100]
[342830729,1732167041929,-2276.33172305,0.00041726,15]
[342830730,1732167041938,-3000.0,0.0004173,42]
[342830731,1732167041948,-154.68,0.00041747,120]
[342830732,1732167041957,-275.56,0.0004189,2]
[342830733,1732167041968,-2016.30772939,0.00042,120]
[342830734,1732167041979,-500.0,0.00042034,120]
[342830735,1732167041988,-632.0,0.00042106,2]
[342830736,1732167041998,-176.95,0.00042192,120]
[342830737,1732167042007,-1435.25,0.00042372,2]
[342830738,1732167042017,-1000.0,0.0004299,2]
[342830739,1732167042027,-550.0,0.00043,2]
[342830740,1732167042036,-2886.29976048,0.000437,120]
[342830741,1732167042046,-151.0,0.000437,14]
[342830742,1732167042056,-151.0,0.000437,14]
[342830743,1732167042066,-151.0,0.000437,14]
[342830744,1732167042075,-151.0,0.000437,14]
[342830745,1732167042085,-151.0,0.000437,14]
[342830746,1732167042095,-151.0,0.000437,14]
[342830747,1732167042105,-151.0,0.000437,14]
[342830748,1732167042115,-151.0,0.000437,14]
[342830749,1732167042125,-1500.0,0.00043835,120]
[342830750,1732167042134,-275.56,0.00044153,2]
[342830751,1732167042143,-3000.0,0.0004423,50]
[342830752,1732167042153,-163.044,0.0004424,120]
[342830753,1732167042162,-1500.0,0.00044246,120]
[342830754,1732167042172,-185.02713,0.0004448,30]
[342830755,1732167042182,-1500.0,0.00044657,120]
[342830756,1732167042192,-4501.2,0.00044688,117]
[342830757,1732167042201,-151.0,0.00044688,14]
[342830758,1732167042211,-238.155361,0.00044688,14]
[342830759,1732167042220,-1881.0,0.000447,7]
[342830760,1732167042232,-152.0,0.00044735,4]
[342830761,1732167042242,-500.0,0.00044905,120]
[342830762,1732167042251,-8120.97,0.00045,30]
[342830763,1732167042260,-600.0,0.00045,2]
[342830764,1732167042270,-1999.26,0.00045,60]
[342830765,1732167042281,-500.0,0.00045,4]
[342830766,1732167042291,-1500.0,0.00045068,120]
[342830767,1732167042300,-632.0,0.00045106,2]
[342830768,1732167042309,-1500.0,0.00045479,120]
[342830769,1732167042320,-154.68,0.00045524,120]
[342830770,1732167042330,-157.82,0.00045753,2]
[342830771,1732167042339,-151.06,0.00045753,2]
[342830772,1732167042349,-1500.0,0.0004589,120]
[342830773,1732167042359,-150.0,0.00045939,120]
[342830774,1732167042369,-10000.0,0.00046,30]
[342830775,1732167042378,-10000.0,0.00046,30]
[342830776,1732167042388,-10000.0,0.00046,30]
[342830777,1732167042399,-10000.0,0.00046,30]
[342830778,1732167042408,-2276.33172305,0.0004614,15]
[342830779,1732167042418,-1500.0,0.00046301,120]
[342830780,1732167042428,-176.95,0.00046411,120]
[342830781,1732167042437,-275.56,0.00046417,2]
[342830782,1732167042447,-18255.88485711,0.000465,120]
[342830783,1732167042456,-10000.0,0.000466,120]
[342830784,1732167042466,-1500.0,0.00046712,120]
[342830785,1732167042476,-3000.0,0.0004673,58]
[342830786,1732167042486,-1000.0,0.00046898,2]
[342830787,1732167042497,-650.0,0.00047,2]
[342830788,1732167042506,-163.127,0.0004701,120]
[342830789,1732167042517,-1500.0,0.00047123,120]
[342830790,1732167042527,-5000.44288,0.0004726,30]
[342830791,1732167042537,-151.0,0.0004726,14]
[342830792,1732167042547,-151.0,0.0004726,14]
[342830803,1732167042870,-1500.0,0.00047534,120]
[342830804,1732167042880,-24613.70617164,0.000476,30]
[342830805,1732167042891,-677.50728669,0.00047708,2]
[342830806,1732167042901,-500.0,0.00047775,120]
[342830807,1732167042910,-202.894638,0.00047775,120]
[342830808,1732167042919,-7064.74274644,0.0004788,100]
[342830809,1732167042929,-1150.91607306,0.00047944,60]
[342830810,1732167042939,-5000.0,0.00047945,120]
[342830811,1732167042948,-1500.0,0.00047945,120]
[342830812,1732167042958,-200.0,0.00048,120]
[342830813,1732167042968,-300.0,0.00048,120]
[342830814,1732167042978,-152.0,0.00048039,5]
[342830815,1732167042988,-632.0,0.00048106,2]
[342830816,1732167042998,-151.0,0.00048219,14]
[342830817,1732167043008,-205.513189,0.00048219,14]
[342830818,1732167043018,-151.0,0.00048219,14]
[342830819,1732167043028,-151.0,0.00048219,14]
[342830820,1732167043037,-151.0,0.00048219,14]
[342830821,1732167043047,-5000.0,0.00048219,120]
[342830822,1732167043056,-1500.0,0.00048356,120]
[342830823,1732167043066,-4910.4,0.00048375,117]
[342830824,1732167043075,-151.847699,0.00048493,14]
[342830825,1732167043084,-151.0,0.00048493,14]
[342830826,1732167043093,-151.0,0.00048493,14]
[342830827,1732167043103,-5000.0,0.00048493,120]
[342830828,1732167043112,-275.56,0.00048681,2]
[342830829,1732167043122,-150.0,0.00048685,7]
[342830830,1732167043132,-295.16513669,0.00048707,2]
[342830831,1732167043142,-200.0,0.00048707,2]
[342830832,1732167043151,-9193.33503408,0.00048712,2]
[342830833,1732167043161,-200.0,0.00048713,2]
[342830834,1732167043170,-878.8763831,0.00048714,2]
[342830835,1732167043180,-200.0,0.00048715,2]
[342830836,1732167043189,-200.0,0.00048717,2]
[342830837,1732167043199,-1206.33270435,0.00048717,2]
[342830838,1732167043208,-200.0,0.00048718,2]
[342830839,1732167043217,-9193.33503408,0.00048721,2]
[342830840,1732167043227,-878.8763831,0.00048722,2]
[342830841,1732167043237,-200.0,0.00048722,2]
[342830842,1732167043247,-1206.33270435,0.00048722,2]
[342830843,1732167043256,-200.0,0.00048724,2]
[342830844,1732167043265,-471.72448017,0.00048725,2]
[342830845,1732167043275,-297.33833236,0.00048729,2]
[342830846,1732167043288,-200.0,0.00048734,2]
[342830847,1732167043297,-295.16513669,0.0004874,2]
[342830850,1732167043307,-150.0,0.00048742,7]
[342830853,1732167043318,-275.03795742,0.00048744,2]
[342830855,1732167043327,-275.03795742,0.00048746,2]
[342830857,1732167043336,-200.0,0.00048749,2]
[342830859,1732167043346,-200.0,0.00048751,2]
[342830861,1732167043356,-200.0,0.00048752,2]
[342830863,1732167043366,-471.72448017,0.00048752,2]
[342830865,1732167043375,-200.0,0.00048755,2]
[342830867,1732167043384,-200.0,0.00048755,2]
[342830869,1732167043393,-200.0,0.0004876,2]
[342830871,1732167043403,-200.0,0.00048761,2]
[342830873,1732167043412,-200.0,0.00048765,2]
[342830875,1732167043421,-200.0,0.00048766,2]
[342830877,1732167043430,-5000.0,0.00048767,120]
[342830879,1732167043439,-1500.0,0.00048767,120]
[342830881,1732167043449,-200.0,0.00048767,2]
[342830883,1732167043458,-297.33833236,0.00048768,2]
[342830884,1732167043467,-950.02856349,0.00048774,2]
[342830885,1732167043477,-297.33833236,0.00048776,2]
[342830886,1732167043486,-200.0,0.00048777,2]
[342830887,1732167043496,-215.0182091,0.0004878,10]
[342830888,1732167043505,-297.33833236,0.00048782,2]
[342830889,1732167043515,-200.0,0.00048782,2]
[342830890,1732167043524,-471.72448017,0.00048783,2]
[342830891,1732167043533,-275.03795742,0.00048787,2]
[342830892,1732167043542,-9193.33503408,0.00048793,2]
[342830893,1732167043552,-9645.57341134,0.00048793,2]
[342830894,1732167043562,-9645.57341134,0.00048794,2]
[342830895,1732167043571,-471.72448017,0.00048795,2]
[342830896,1732167043580,-200.0,0.00048796,2]
[342830897,1732167043590,-295.16513669,0.00048798,2]
[342830898,1732167043599,-200.0,0.00048799,2]
[342830899,1732167043608,-200.0,0.00048801,2]
[342830900,1732167043617,-200.0,0.00048802,2]
[342830901,1732167043627,-275.03795742,0.00048811,2]
[342830902,1732167043636,-200.0,0.00048813,2]
[342830903,1732167043646,-200.0,0.00048814,2]
[342830904,1732167043655,-200.0,0.00048819,2]
[342830905,1732167043665,-9645.57341134,0.00048822,2]
[342830906,1732167043674,-297.33833236,0.00048824,2]
[342830907,1732167043683,-1206.33270435,0.00048825,2]
[342830908,1732167043694,-878.8763831,0.00048835,2]
[342830909,1732167043704,-9645.57341134,0.0004884,2]
[342830910,1732167043714,-950.02856349,0.00048841,2]
[342830911,1732167043724,-200.0,0.00048842,2]
[342830912,1732167043734,-9193.33503408,0.00048845,2]
[342830913,1732167043744,-150.0,0.00048851,7]
[342830914,1732167043753,-200.0,0.00048858,2]
[342830915,1732167043763,-200.0,0.0004886,2]
[342830916,1732167043772,-200.0,0.00048861,2]
[342830917,1732167043781,-295.16513669,0.00048861,2]
[342830918,1732167043790,-471.72448017,0.0004887,2]
[342830919,1732167043800,-200.0,0.00048871,2]
[342830920,1732167043810,-200.0,0.00048872,2]
[342830921,1732167043819,-9193.33503408,0.00048872,2]
[342830922,1732167043829,-471.72448017,0.00048877,2]
[342830923,1732167043839,-200.0,0.00048878,2]
[342830924,1732167043850,-196.15786088,0.00048878,120]
[342830925,1732167043859,-878.8763831,0.00048878,2]
[342830926,1732167043869,-200.0,0.0004888,2]
[342830927,1732167043879,-1206.33270435,0.0004888,2]
[342830928,1732167043888,-139000.0,0.0004888,120]
[342830929,1732167043898,-49300.0,0.0004888,120]
[342830930,1732167043908,-151.0,0.0004888,14]
[342830931,1732167043917,-151.0,0.0004888,14]
[342830932,1732167043927,-151.0,0.0004888,14]
[342830933,1732167043936,-151.0,0.0004888,14]
[342830934,1732167043946,-151.0,0.0004888,14]
[342830935,1732167043956,-151.0,0.0004888,14]
[342830936,1732167043965,-151.0,0.0004888,14]
[342830937,1732167043976,-209.363668,0.0004888,14]
[342830938,1732167043988,-209.363668,0.0004888,14]
[342830939,1732167043998,-151.0,0.0004888,14]
[342830940,1732167044007,-151.0,0.0004888,14]
[342830941,1732167044017,-710.218166,0.0004888,14]
[342830942,1732167044028,-710.218166,0.0004888,14]
[342830943,1732167044038,-151.0,0.0004888,14]
[342830944,1732167044048,-176.916156,0.0004888,14]
[342830945,1732167044059,-176.916156,0.0004888,14]
[342830946,1732167044068,-151.0,0.0004888,14]
[342830947,1732167044078,-151.0,0.0004888,14]
[342830948,1732167044088,-327.205547,0.0004888,14]
[342830949,1732167044097,-327.205547,0.0004888,14]
[342830950,1732167044107,-151.0,0.0004888,14]
[342830951,1732167044118,-151.0,0.0004888,14]
[342830952,1732167044127,-151.0,0.0004888,14]
[342830953,1732167044136,-151.0,0.0004888,14]
[342830954,1732167044146,-151.0,0.0004888,14]
[342830955,1732167044155,-151.0,0.0004888,14]
[342830956,1732167044164,-151.0,0.0004888,14]
[342830957,1732167044173,-151.0,0.0004888,14]
[342830958,1732167044182,-151.0,0.0004888,14]
[342830959,1732167044191,-227.506067,0.0004888,14]
[342830960,1732167044201,-151.0,0.0004888,14]
[342830961,1732167044210,-323.410003,0.0004888,14]
[342830962,1732167044220,-323.410003,0.0004888,14]
[342830963,1732167044231,-582.092968,0.0004888,14]
[342830964,1732167044241,-582.092968,0.0004888,14]
[342830965,1732167044250,-211.363073,0.0004888,14]
[342830966,1732167044259,-288.607166,0.0004888,14]
[342830967,1732167044269,-211.363073,0.0004888,14]
[342830968,1732167044281,-1985.426764,0.0004888,14]
[342830969,1732167044291,-288.607166,0.0004888,14]
[342830970,1732167044300,-151.0,0.0004888,14]
[342830971,1732167044310,-1985.426764,0.0004888,14]
[342830972,1732167044320,-151.0,0.0004888,14]
[342830973,1732167044330,-151.0,0.0004888,14]
[342830974,1732167044339,-151.0,0.0004888,14]
[342830975,1732167044349,-151.0,0.0004888,14]
[342830976,1732167044361,-151.0,0.0004888,14]
[342830977,1732167044371,-151.0,0.0004888,14]
[342830978,1732167044381,-151.0,0.0004888,14]
[342830979,1732167044390,-151.0,0.0004888,14]
[342830980,1732167044400,-151.0,0.0004888,14]
[342830981,1732167044410,-2596.49532,0.0004888,14]
[342830982,1732167044419,-151.0,0.0004888,14]
[342830983,1732167044428,-2596.49532,0.0004888,14]
[342830984,1732167044438,-151.0,0.0004888,14]
[342830985,1732167044448,-151.0,0.0004888,14]
[342830986,1732167044459,-151.0,0.0004888,14]
[342830987,1732167044468,-151.0,0.0004888,14]
[342830988,1732167044479,-151.0,0.0004888,14]
[342830989,1732167044489,-151.0,0.0004888,14]
[342830990,1732167044498,-151.0,0.0004888,14]
[342830991,1732167044507,-151.0,0.0004888,14]
[342830992,1732167044516,-151.0,0.0004888,14]
[342830993,1732167044525,-151.0,0.0004888,14]
[342830994,1732167044534,-151.0,0.0004888,14]
[342830995,1732167044543,-187.979718,0.0004888,14]
[342830996,1732167044552,-187.979718,0.0004888,14]
[342830997,1732167044561,-151.0,0.0004888,14]
[342830998,1732167044571,-558.17647,0.0004888,14]
[342830999,1732167044580,-558.17647,0.0004888,14]
[342831000,1732167044589,-471.72448017,0.00048882,2]
[342831001,1732167044598,-151.0,0.00048885,14]
[342831002,1732167044608,-9193.33503408,0.00048885,2]
[342831003,1732167044618,-200.0,0.00048886,2]
[342831004,1732167044627,-295.16513669,0.00048889,2]
[342831005,1732167044636,-297.33833236,0.00048893,2]
[342831006,1732167044646,-275.03795742,0.00048893,2]
[342831007,1732167044656,-200.0,0.00048894,2]
[342831008,1732167044665,-295.16513669,0.00048894,2]
[342831009,1732167044675,-9645.57341134,0.00048895,2]
[342831010,1732167044685,-950.02856349,0.00048899,2]
[342831011,1732167044694,-200.0,0.000489,2]
[342831012,1732167044703,-19600.0,0.000489,17]
[342831013,1732167044713,-200.0,0.00048903,2]
[342831014,1732167044722,-9645.57341134,0.00048904,2]
[342831015,1732167044733,-9645.57341134,0.00048904,2]
[342831016,1732167044743,-151.0,0.00048904,14]
[342831017,1732167044752,-238.564908,0.00048904,14]
[342831018,1732167044762,-200.0,0.00048906,2]
[342831019,1732167044771,-150.0,0.0004891,7]
[342831020,1732167044781,-200.0,0.0004891,2]
[342831021,1732167044791,-297.33833236,0.00048913,2]
[342831022,1732167044801,-200.0,0.00048916,2]
[342831023,1732167044810,-471.72448017,0.00048918,2]
[342831024,1732167044820,-150.0,0.00048919,7]
[342831025,1732167044830,-200.0,0.00048923,2]
[342831026,1732167044839,-878.8763831,0.00048929,2]
[342831027,1732167044849,-950.02856349,0.00048932,2]
[342831028,1732167044859,-295.16513669,0.00048932,2]
[342831029,1732167044869,-200.0,0.00048933,2]
[342831030,1732167044879,-878.8763831,0.00048936,2]
[342831031,1732167044890,-297.33833236,0.00048939,2]
[342831032,1732167044900,-950.02856349,0.0004894,2]
[342831033,1732167044910,-950.02856349,0.00048941,2]
[342831034,1732167044921,-200.0,0.00048943,2]
[342831035,1732167044932,-271.727,0.00048945,30]
[342831036,1732167044944,-200.0,0.00048945,2]
[342831037,1732167044954,-1206.33270435,0.00048946,2]
[342831038,1732167044964,-275.03795742,0.00048946,2]
[342831039,1732167044974,-200.0,0.00048947,2]
[342831040,1732167044990,-950.02856349,0.00048949,2]
[342831041,1732167045000,-200.0,0.0004895,2]
[342831042,1732167045010,-9193.33503408,0.00048952,2]
[342831043,1732167045021,-200.0,0.00048953,2]
[342831044,1732167045031,-200.0,0.00048958,2]
[342831045,1732167045041,-275.03795742,0.00048962,2]
[342831046,1732167045051,-295.16513669,0.00048963,2]
[342831047,1732167045061,-950.02856349,0.00048966,2]
[342831048,1732167045072,-9645.57341134,0.00048969,2]
[342831049,1732167045082,-200.0,0.00048974,2]
[342831050,1732167045091,-9193.33503408,0.00048978,2]
[342831051,1732167045194,-275.03795742,0.0004898,2]
[342831052,1732167045204,-878.8763831,0.00048982,2]
[342831053,1732167045214,-150.0,0.00048985,7]
[342831054,1732167045223,-878.8763831,0.00048985,2]
[342831055,1732167045241,-1206.33270435,0.00048987,2]
[342831056,1732167045252,-200.0,0.00048992,2]
[342831057,1732167045261,-1206.33270435,0.00048993,2]
[342831058,1732167045272,-1206.33270435,0.00048993,2]
[342831059,1732167045286,-14559.4078,0.00049,30]
[342831060,1732167045296,-700.0,0.00049,2]
[342831061,1732167045305,-100000.0,0.00049,120]
[342831062,1732167045315,-151.0,0.00049,14]
[342831063,1732167045324,-151.0,0.00049,14]
[342831064,1732167045334,-151.0,0.00049,14]
[342831065,1732167045345,-151.0,0.00049,14]
[342831066,1732167045355,-296.074881,0.00049,14]
[342831067,1732167045365,-150.0,0.00049015,7]
[342831068,1732167045375,-1938.36,0.00049032,120]
[342831069,1732167045384,-5000.0,0.00049041,120]
[342831070,1732167045394,-1937.64,0.00049064,120]
[342831071,1732167045404,-150.0,0.00049128,7]
[342831072,1732167045414,-150.0,0.00049129,7]
[342831073,1732167045423,-1500.0,0.00049178,120]
[342831074,1732167045433,-11400.0,0.000492,120]
[342831075,1732167045443,-4031.0,0.00049288,120]
[342831076,1732167045453,-500.0,0.0004929,120]
[342831077,1732167045463,-154.68,0.000493,120]
[342831078,1732167045473,-5000.0,0.00049315,120]
[342831079,1732167045486,-1762.81,0.00049315,120]
[342831080,1732167045496,-1762.81,0.00049315,120]
[342831081,1732167045506,-1762.81,0.00049315,120]
[342831082,1732167045516,-1762.81,0.00049315,120]
[342831083,1732167045526,-1762.81,0.00049315,120]
[342831084,1732167045536,-1762.81,0.00049315,120]
[342831085,1732167045546,-1762.81,0.00049315,120]
[342831086,1732167045556,-1762.81,0.00049315,120]
[342831087,1732167045567,-1762.81,0.00049315,120]
[342831088,1732167045576,-1762.81,0.00049315,120]
[342831089,1732167045586,-1762.81,0.00049315,120]
[342831090,1732167045596,-1762.81,0.00049315,120]
[342831091,1732167045606,-1762.81,0.00049315,120]
[342831092,1732167045616,-1762.81,0.00049315,120]
[342831093,1732167045625,-1762.81,0.00049315,120]
[342831094,1732167045635,-1762.81,0.00049315,120]
[342831095,1732167045646,-1000.0,0.00049315,120]
[342831096,1732167045655,-150.0,0.00049465,7]
[342831098,1732167045666,-12179.84889672,0.0004949,120]
[342831100,1732167045675,-150.0,0.00049499,7]
[342831102,1732167045685,-30000.0,0.000495,4]
[342831103,1732167045695,-12017.65,0.000495,120]
[342831104,1732167045705,-155.288013,0.000495,120]
[342831105,1732167045714,-187.979718,0.000495,120]
[342831106,1732167045723,-187.979718,0.000495,120]